[Event "*** Titled Tuesday Blitz"]
[Site "Chess.com"]
[Date "2021.04.06"]
[Round "6"]
[White "Sjakkerntobi"]
[Black "DarZay"]
[Result "0-1"]
[WhiteElo "2378"]
[BlackElo "2209"]
[TimeControl "180+1"]
[EndTime "11:09:23 PDT"]
[Termination "DarZay won by checkmate"]

1. e4 {[%clk 0:03:00.9]} 1... c5 {[%clk 0:02:59.4]} 2. Nf3 {[%clk 0:02:39.4]}
2... Nc6 {[%clk 0:02:56.6]} 3. d4 {[%clk 0:02:30.2]} 3... cxd4 {[%clk
0:02:55.7]} 4. Nxd4 {[%clk 0:02:18.3]} 4... Nf6 {[%clk 0:02:55.3]} 5. Nc3 {[%clk
0:02:16.9]} 5... d6 {[%clk 0:02:53.9]} 6. Bg5 {[%clk 0:02:16]} 6... e6 {[%clk
0:02:52.9]} 7. Qd2 {[%clk 0:02:15.3]} 7... a6 {[%clk 0:02:51]} 8. Nxc6 {[%clk
0:02:14.7]} 8... bxc6 {[%clk 0:02:50.2]} 9. O-O-O {[%clk 0:02:15.6]} 9... Bd7
{[%clk 0:02:46.4]} 10. f4 {[%clk 0:02:12.8]} 10... Be7 {[%clk 0:02:45.5]} 11.
Bd3 {[%clk 0:02:06.4]} 11... Qa5 {[%clk 0:02:40.7]} 12. Rhe1 {[%clk 0:01:28.4]}
12... d5 {[%clk 0:02:37.3]} 13. e5 {[%clk 0:01:19.1]} 13... Ng8 {[%clk
0:02:31.6]} 14. Bxe7 {[%clk 0:01:16]} 14... Nxe7 {[%clk 0:02:31.1]} 15. g4
{[%clk 0:01:15.1]} 15... d4 {[%clk 0:02:26.8]} 16. Ne4 {[%clk 0:01:14.2]} 16...
Qxa2 {[%clk 0:02:26.3]} 17. Nd6+ {[%clk 0:01:09.1]} 17... Kf8 {[%clk 0:02:24.5]}
18. Qb4 {[%clk 0:01:05.8]} 18... Nd5 {[%clk 0:02:13.2]} 19. Qc5 {[%clk
0:01:01.4]} 19... Kg8 {[%clk 0:01:50.4]} 20. f5 {[%clk 0:00:42.5]} 20... Qa1+
{[%clk 0:01:48.1]} 21. Kd2 {[%clk 0:00:40.7]} 21... Qxb2 {[%clk 0:01:48.4]} 22.
f6 {[%clk 0:00:31.6]} 22... Qc3+ {[%clk 0:01:41.3]} 23. Qxc3 {[%clk 0:00:30.1]}
23... dxc3+ {[%clk 0:01:41.6]} 24. Ke2 {[%clk 0:00:28.5]} 24... gxf6 {[%clk
0:01:38.1]} 25. exf6 {[%clk 0:00:22.9]} 25... c5 {[%clk 0:01:19]} 26. Bc4 {[%clk
0:00:19.4]} 26... Bc6 {[%clk 0:01:16.6]} 27. g5 {[%clk 0:00:18.8]} 27... h6
{[%clk 0:01:15.7]} 28. g6 {[%clk 0:00:16.4]} 28... fxg6 {[%clk 0:01:14]} 29. Rg1
{[%clk 0:00:16.3]} 29... Kh7 {[%clk 0:01:12.5]} 30. Bd3 {[%clk 0:00:12.7]} 30...
Nf4+ {[%clk 0:01:12.2]} 31. Ke3 {[%clk 0:00:13]} 31... Nxd3 {[%clk 0:01:11.8]}
32. Rxd3 {[%clk 0:00:13.9]} 32... Rhf8 {[%clk 0:01:07.6]} 33. f7 {[%clk
0:00:13.9]} 33... Bd5 {[%clk 0:01:05.7]} 34. Rxc3 {[%clk 0:00:11.8]} 34... Rad8
{[%clk 0:01:04.8]} 35. Nb7 {[%clk 0:00:10.4]} 35... Bxb7 {[%clk 0:01:03.8]} 36.
Rxc5 {[%clk 0:00:10]} 36... Rxf7 {[%clk 0:01:02.4]} 37. Rg3 {[%clk 0:00:10.6]}
37... Rc8 {[%clk 0:01:00.5]} 38. Rxc8 {[%clk 0:00:09.8]} 38... Bxc8 {[%clk
0:00:59.9]} 39. Kd4 {[%clk 0:00:10.7]} 39... Bb7 {[%clk 0:00:59.8]} 40. c4
{[%clk 0:00:10.4]} 40... Rf5 {[%clk 0:00:57]} 41. Rb3 {[%clk 0:00:09]} 41... Bf3
{[%clk 0:00:55.3]} 42. Rb6 {[%clk 0:00:08.6]} 42... e5+ {[%clk 0:00:53.5]} 43.
Ke3 {[%clk 0:00:07.8]} 43... e4 {[%clk 0:00:44.5]} 44. Rxa6 {[%clk 0:00:07.9]}
44... Rc5 {[%clk 0:00:41.9]} 45. Kd4 {[%clk 0:00:08.3]} 45... Rc7 {[%clk
0:00:41]} 46. Ra3 {[%clk 0:00:08.4]} 46... g5 {[%clk 0:00:40.3]} 47. c5 {[%clk
0:00:08.3]} 47... g4 {[%clk 0:00:40]} 48. Re3 {[%clk 0:00:08.2]} 48... Kg6
{[%clk 0:00:37]} 49. Kd5 {[%clk 0:00:08]} 49... Bd1 {[%clk 0:00:33.2]} 50. Kd6
{[%clk 0:00:08]} 50... Rc8 {[%clk 0:00:28.6]} 51. Rxe4 {[%clk 0:00:07.9]} 51...
Bf3 {[%clk 0:00:26.9]} 52. Re6+ {[%clk 0:00:08.1]} 52... Kf7 {[%clk 0:00:20.7]}
53. Re7+ {[%clk 0:00:07.6]} 53... Kf6 {[%clk 0:00:21.1]} 54. Re6+ {[%clk
0:00:08.1]} 54... Kf7 {[%clk 0:00:21]} 55. Rxh6 {[%clk 0:00:07.6]} 55... Rc6+
{[%clk 0:00:20.4]} 56. Ke5 {[%clk 0:00:07.2]} 56... Rxh6 {[%clk 0:00:20.5]} 57.
Kf4 {[%clk 0:00:06.8]} 57... Rxh2 {[%clk 0:00:20.4]} 58. Ke5 {[%clk 0:00:07.5]}
58... Rh6 {[%clk 0:00:19.9]} 59. Kf4 {[%clk 0:00:07.9]} 59... Ke6 {[%clk
0:00:19.9]} 60. c6 {[%clk 0:00:08.1]} 60... Bxc6 {[%clk 0:00:19.2]} 61. Kg3
{[%clk 0:00:08.2]} 61... Ke5 {[%clk 0:00:19.4]} 62. Kxg4 {[%clk 0:00:09.1]}
62... Rg6+ {[%clk 0:00:19.2]} 63. Kh3 {[%clk 0:00:07.5]} 63... Kf4 {[%clk
0:00:19]} 64. Kh2 {[%clk 0:00:07.9]} 64... Rg2+ {[%clk 0:00:18.9]} 65. Kh3
{[%clk 0:00:08.2]} 65... Rg8 {[%clk 0:00:17.9]} 66. Kh2 {[%clk 0:00:08.1]} 66...
Kf3 {[%clk 0:00:18.3]} 67. Kh1 {[%clk 0:00:07.7]} 67... Kf2+ {[%clk 0:00:18.8]}
68. Kh2 {[%clk 0:00:07.8]} 68... Rh8# {[%clk 0:00:19]} 0-1

[Event "*** Titled Tuesday Blitz"]
[Site "Chess.com"]
[Date "2021.04.06"]
[Round "6"]
[White "viktorgen2021"]
[Black "kikydu96"]
[Result "0-1"]
[WhiteElo "2261"]
[BlackElo "2437"]
[TimeControl "180+1"]
[EndTime "11:09:24 PDT"]
[Termination "kikydu96 won by checkmate"]

1. d4 {[%clk 0:03:00.9]} 1... d5 {[%clk 0:02:54]} 2. Nf3 {[%clk 0:03:00.7]} 2...
Nf6 {[%clk 0:02:51.1]} 3. g3 {[%clk 0:03:00.6]} 3... Bg4 {[%clk 0:02:48.8]} 4.
Bg2 {[%clk 0:03:00.4]} 4... Nbd7 {[%clk 0:02:48.7]} 5. O-O {[%clk 0:02:59.5]}
5... e6 {[%clk 0:02:49.1]} 6. c4 {[%clk 0:03:00]} 6... c6 {[%clk 0:02:45.8]} 7.
Nc3 {[%clk 0:02:58]} 7... Be7 {[%clk 0:02:45.3]} 8. Bf4 {[%clk 0:02:51.9]} 8...
O-O {[%clk 0:01:57.9]} 9. Rc1 {[%clk 0:02:34]} 9... dxc4 {[%clk 0:01:50.6]} 10.
Ne5 {[%clk 0:02:31.1]} 10... Nxe5 {[%clk 0:01:42.7]} 11. Bxe5 {[%clk 0:02:29.6]}
11... Rc8 {[%clk 0:01:39.7]} 12. a4 {[%clk 0:02:08]} 12... a5 {[%clk 0:01:33.4]}
13. Qc2 {[%clk 0:02:04.7]} 13... Nd5 {[%clk 0:01:28.9]} 14. Ne4 {[%clk
0:01:41.2]} 14... Bf5 {[%clk 0:01:20.2]} 15. Qxc4 {[%clk 0:01:35.7]} 15... Qb6
{[%clk 0:01:12.4]} 16. b3 {[%clk 0:01:24.6]} 16... Rfd8 {[%clk 0:01:06.9]} 17.
Rfd1 {[%clk 0:01:18.5]} 17... Qb4 {[%clk 0:01:03]} 18. h3 {[%clk 0:00:59.8]}
18... Nb6 {[%clk 0:00:58.9]} 19. Qxb4 {[%clk 0:00:52.1]} 19... Bxb4 {[%clk
0:00:59.8]} 20. Nc5 {[%clk 0:00:43.1]} 20... Bxc5 {[%clk 0:00:33.2]} 21. dxc5
{[%clk 0:00:44]} 21... Nd7 {[%clk 0:00:20.2]} 22. Bc3 {[%clk 0:00:41.5]} 22...
Nxc5 {[%clk 0:00:17.3]} 23. Bxa5 {[%clk 0:00:22.2]} 23... Rxd1+ {[%clk
0:00:16.9]} 24. Rxd1 {[%clk 0:00:22.5]} 24... Bc2 {[%clk 0:00:14.8]} 25. Rc1
{[%clk 0:00:20]} 25... Nxb3 {[%clk 0:00:15.2]} 26. Rxc2 {[%clk 0:00:20.3]} 26...
Nxa5 {[%clk 0:00:15.9]} 27. Rb2 {[%clk 0:00:20.7]} 27... Rb8 {[%clk 0:00:12.8]}
28. Kf1 {[%clk 0:00:19.5]} 28... b5 {[%clk 0:00:13.1]} 29. axb5 {[%clk
0:00:18.4]} 29... cxb5 {[%clk 0:00:14]} 30. Ke1 {[%clk 0:00:17.4]} 30... b4
{[%clk 0:00:14.6]} 31. Be4 {[%clk 0:00:16.8]} 31... Kf8 {[%clk 0:00:13.8]} 32.
e3 {[%clk 0:00:16.7]} 32... Ke7 {[%clk 0:00:14]} 33. Ke2 {[%clk 0:00:17.3]}
33... Kd6 {[%clk 0:00:14.2]} 34. h4 {[%clk 0:00:16.9]} 34... Kc5 {[%clk
0:00:14.5]} 35. Bxh7 {[%clk 0:00:16.3]} 35... g6 {[%clk 0:00:13.4]} 36. h5
{[%clk 0:00:16.8]} 36... gxh5 {[%clk 0:00:13.2]} 37. Rc2+ {[%clk 0:00:16.6]}
37... Kb5 {[%clk 0:00:09]} 38. Bd3+ {[%clk 0:00:17]} 38... Kb6 {[%clk
0:00:08.7]} 39. Rb2 {[%clk 0:00:16.7]} 39... b3 {[%clk 0:00:09.2]} 40. Kd2
{[%clk 0:00:17.1]} 40... Kc5 {[%clk 0:00:09.6]} 41. Kc3 {[%clk 0:00:16.8]} 41...
Rb4 {[%clk 0:00:09.2]} 42. Rb1 {[%clk 0:00:16.1]} 42... h4 {[%clk 0:00:09.5]}
43. gxh4 {[%clk 0:00:15.3]} 43... Rxh4 {[%clk 0:00:10.4]} 44. Ra1 {[%clk
0:00:15.4]} 44... Kb6 {[%clk 0:00:10.2]} 45. Ra3 {[%clk 0:00:14.7]} 45... Rh1
{[%clk 0:00:09.5]} 46. Kb2 {[%clk 0:00:12.8]} 46... Rd1 {[%clk 0:00:09.7]} 47.
Kc3 {[%clk 0:00:11.7]} 47... b2 {[%clk 0:00:08.8]} 48. Ra4 {[%clk 0:00:08.3]}
48... b1=Q {[%clk 0:00:08.9]} 49. Bxb1 {[%clk 0:00:08.3]} 49... Rxb1 {[%clk
0:00:09.8]} 50. Rf4 {[%clk 0:00:08.1]} 50... f5 {[%clk 0:00:09.5]} 51. Kc2
{[%clk 0:00:08.4]} 51... Rb5 {[%clk 0:00:08.5]} 52. Rh4 {[%clk 0:00:08.7]} 52...
Rc5+ {[%clk 0:00:08.3]} 53. Kd3 {[%clk 0:00:09.2]} 53... Kc6 {[%clk 0:00:08.8]}
54. Rh6 {[%clk 0:00:08.8]} 54... Kd6 {[%clk 0:00:09]} 55. e4 {[%clk 0:00:09.3]}
55... fxe4+ {[%clk 0:00:09.1]} 56. Kxe4 {[%clk 0:00:10.2]} 56... Nc6 {[%clk
0:00:09.5]} 57. f4 {[%clk 0:00:10.4]} 57... Rc4+ {[%clk 0:00:09.8]} 58. Ke3
{[%clk 0:00:10.7]} 58... Ne7 {[%clk 0:00:10.3]} 59. Rf6 {[%clk 0:00:09.1]} 59...
Nd5+ {[%clk 0:00:10.4]} 60. Kf3 {[%clk 0:00:08.5]} 60... Nxf6 {[%clk 0:00:10.2]}
61. Ke3 {[%clk 0:00:09.4]} 61... Nd5+ {[%clk 0:00:09.9]} 62. Kf3 {[%clk
0:00:09.2]} 62... Rxf4+ {[%clk 0:00:10.8]} 63. Ke2 {[%clk 0:00:10.1]} 63... Ke5
{[%clk 0:00:11.2]} 64. Kd1 {[%clk 0:00:10.9]} 64... Kd4 {[%clk 0:00:11.7]} 65.
Kc2 {[%clk 0:00:11.8]} 65... Rf3 {[%clk 0:00:12.1]} 66. Kb1 {[%clk 0:00:11.6]}
66... Rc3 {[%clk 0:00:12.2]} 67. Kb2 {[%clk 0:00:11.9]} 67... e5 {[%clk
0:00:12.8]} 68. Kb1 {[%clk 0:00:12.8]} 68... e4 {[%clk 0:00:13.7]} 69. Kb2
{[%clk 0:00:13.5]} 69... e3 {[%clk 0:00:14.6]} 70. Ka2 {[%clk 0:00:14.1]} 70...
e2 {[%clk 0:00:15.5]} 71. Kb2 {[%clk 0:00:15]} 71... e1=Q {[%clk 0:00:14.9]} 72.
Ka2 {[%clk 0:00:15.9]} 72... Qd2+ {[%clk 0:00:15.4]} 73. Kb1 {[%clk 0:00:15.9]}
73... Rc1# {[%clk 0:00:16.3]} 0-1

[Event "*** Titled Tuesday Blitz"]
[Site "Chess.com"]
[Date "2021.04.06"]
[Round "6"]
[White "Isajevsky_Anton"]
[Black "Matols"]
[Result "1-0"]
[WhiteElo "2563"]
[BlackElo "2314"]
[TimeControl "180+1"]
[EndTime "11:09:25 PDT"]
[Termination "Isajevsky_Anton won on time"]

1. c4 {[%clk 0:03:00.9]} 1... e6 {[%clk 0:02:56.4]} 2. Nf3 {[%clk 0:03:00.5]}
2... d5 {[%clk 0:02:55.7]} 3. e3 {[%clk 0:03:00.1]} 3... Nf6 {[%clk 0:02:55.2]}
4. Nc3 {[%clk 0:02:58.6]} 4... Be7 {[%clk 0:02:54.9]} 5. g4 {[%clk 0:02:49]}
5... O-O {[%clk 0:02:43.7]} 6. g5 {[%clk 0:02:46.5]} 6... Ne4 {[%clk 0:02:43.2]}
7. h4 {[%clk 0:02:44.6]} 7... c5 {[%clk 0:02:35]} 8. Qc2 {[%clk 0:02:36.8]} 8...
Nxc3 {[%clk 0:02:23]} 9. dxc3 {[%clk 0:02:36.8]} 9... Nc6 {[%clk 0:02:21.1]} 10.
Bd3 {[%clk 0:02:31.9]} 10... g6 {[%clk 0:02:04.4]} 11. e4 {[%clk 0:02:02.6]}
11... dxc4 {[%clk 0:01:59.2]} 12. Bxc4 {[%clk 0:02:01.9]} 12... a6 {[%clk
0:01:51.3]} 13. Bf4 {[%clk 0:01:42]} 13... b5 {[%clk 0:01:48.1]} 14. Be2 {[%clk
0:01:42]} 14... Bb7 {[%clk 0:01:42.3]} 15. h5 {[%clk 0:01:37]} 15... Qb6 {[%clk
0:01:27.9]} 16. O-O-O {[%clk 0:01:15.6]} 16... b4 {[%clk 0:01:18.1]} 17. Rd7
{[%clk 0:01:03.2]} 17... Rad8 {[%clk 0:01:05.4]} 18. Bc7 {[%clk 0:01:01.1]}
18... Qa7 {[%clk 0:00:54.6]} 19. Bxd8 {[%clk 0:00:57]} 19... Rxd8 {[%clk
0:00:49.3]} 20. Rxd8+ {[%clk 0:00:56.7]} 20... Bxd8 {[%clk 0:00:49.1]} 21. hxg6
{[%clk 0:00:46.2]} 21... fxg6 {[%clk 0:00:47.5]} 22. Qd2 {[%clk 0:00:39.6]}
22... bxc3 {[%clk 0:00:45]} 23. Qd7 {[%clk 0:00:27.4]} 23... cxb2+ {[%clk
0:00:43.4]} 24. Kb1 {[%clk 0:00:27.4]} 24... Be7 {[%clk 0:00:35.6]} 25. Qe8+
{[%clk 0:00:17.7]} 25... Kg7 {[%clk 0:00:35.1]} 26. Bc4 {[%clk 0:00:15.4]} 26...
Qb8 {[%clk 0:00:18.8]} 27. Qxb8 {[%clk 0:00:13.9]} 27... Nxb8 {[%clk 0:00:18.7]}
28. Bxe6 {[%clk 0:00:14.3]} 28... Bxe4+ {[%clk 0:00:18.3]} 29. Kxb2 {[%clk
0:00:15]} 29... Bxf3 {[%clk 0:00:18.3]} 30. Rh3 {[%clk 0:00:15.1]} 30... Be4
{[%clk 0:00:17.7]} 31. Re3 {[%clk 0:00:14.1]} 31... Bc6 {[%clk 0:00:17.1]} 32.
f4 {[%clk 0:00:14.3]} 32... Kf8 {[%clk 0:00:15.1]} 33. Rh3 {[%clk 0:00:12.8]}
33... Nd7 {[%clk 0:00:14]} 34. Rxh7 {[%clk 0:00:12.3]} 34... Nb6 {[%clk
0:00:14]} 35. Rh8+ {[%clk 0:00:09.5]} 35... Kg7 {[%clk 0:00:14.1]} 36. Rg8+
{[%clk 0:00:10]} 36... Kh7 {[%clk 0:00:14.4]} 37. Rb8 {[%clk 0:00:08.5]} 37...
Nd5 {[%clk 0:00:13.7]} 38. f5 {[%clk 0:00:04]} 38... gxf5 {[%clk 0:00:13]} 39.
Bxf5+ {[%clk 0:00:04.6]} 39... Kg7 {[%clk 0:00:13.3]} 40. g6 {[%clk 0:00:05.1]}
40... Ne3 {[%clk 0:00:12.4]} 41. Bd3 {[%clk 0:00:03.6]} 41... Bf6+ {[%clk
0:00:12.6]} 42. Ka3 {[%clk 0:00:03.8]} 42... c4 {[%clk 0:00:12]} 43. Bb1 {[%clk
0:00:04.1]} 43... Be7+ {[%clk 0:00:11.3]} 44. Kb2 {[%clk 0:00:04]} 44... Nd1+
{[%clk 0:00:11.1]} 45. Kc1 {[%clk 0:00:04.1]} 45... Ne3 {[%clk 0:00:11]} 46. Rc8
{[%clk 0:00:04.1]} 46... Bf3 {[%clk 0:00:09.7]} 47. Rc7 {[%clk 0:00:04.2]} 47...
Kf6 {[%clk 0:00:09.2]} 48. g7 {[%clk 0:00:04.5]} 48... Bd5 {[%clk 0:00:08.3]}
49. Bh7 {[%clk 0:00:04.6]} 49... Kxg7 {[%clk 0:00:08.1]} 50. Rxe7+ {[%clk
0:00:04.3]} 50... Kf6 {[%clk 0:00:08.4]} 51. Ra7 {[%clk 0:00:02.7]} 51... Ke5
{[%clk 0:00:07.8]} 52. Bc2 {[%clk 0:00:02.7]} 52... Kd4 {[%clk 0:00:07.6]} 53.
Rxa6 {[%clk 0:00:03.2]} 53... c3 {[%clk 0:00:05.6]} 54. a4 {[%clk 0:00:01.6]}
54... Nc4 {[%clk 0:00:05.3]} 55. a5 {[%clk 0:00:01.7]} 55... Ne3 {[%clk
0:00:03]} 56. Ra7 {[%clk 0:00:02.1]} 56... Bc4 {[%clk 0:00:01.4]} 57. a6 {[%clk
0:00:02.4]} 57... Kc5 {[%clk 0:00:01.6]} 58. Rc7+ {[%clk 0:00:02.5]} 58... Kb6
{[%clk 0:00:01.1]} 59. a7 {[%clk 0:00:03.1]} 1-0

[Event "*** Titled Tuesday Blitz"]
[Site "Chess.com"]
[Date "2021.04.06"]
[Round "6"]
[White "olksuna"]
[Black "marianokar"]
[Result "1/2-1/2"]
[WhiteElo "2668"]
[BlackElo "2528"]
[TimeControl "180+1"]
[EndTime "11:09:27 PDT"]
[Termination "Game drawn by agreement"]

1. e4 {[%clk 0:03:00.9]} 1... e5 {[%clk 0:02:57.9]} 2. Nf3 {[%clk 0:03:00]} 2...
Nc6 {[%clk 0:02:58.5]} 3. Bb5 {[%clk 0:02:59.7]} 3... Nf6 {[%clk 0:02:59.1]} 4.
d3 {[%clk 0:02:57.7]} 4... d6 {[%clk 0:02:59.1]} 5. c3 {[%clk 0:02:52.5]} 5...
g6 {[%clk 0:02:59.2]} 6. O-O {[%clk 0:02:51.2]} 6... Bg7 {[%clk 0:02:59.2]} 7.
h3 {[%clk 0:02:51.8]} 7... O-O {[%clk 0:02:59.4]} 8. Be3 {[%clk 0:02:52.3]} 8...
a6 {[%clk 0:02:59]} 9. Ba4 {[%clk 0:02:51.1]} 9... b5 {[%clk 0:02:59.1]} 10. Bc2
{[%clk 0:02:49.1]} 10... Bb7 {[%clk 0:02:58.9]} 11. Nbd2 {[%clk 0:02:47.2]}
11... Nb8 {[%clk 0:02:59]} 12. b4 {[%clk 0:02:45.8]} 12... Nbd7 {[%clk
0:02:59.1]} 13. Nb3 {[%clk 0:02:42.5]} 13... Rb8 {[%clk 0:02:53.5]} 14. a4
{[%clk 0:02:39.6]} 14... d5 {[%clk 0:02:33.8]} 15. axb5 {[%clk 0:02:33.9]} 15...
axb5 {[%clk 0:02:29]} 16. Nc5 {[%clk 0:02:30.7]} 16... Nxc5 {[%clk 0:02:04.6]}
17. Bxc5 {[%clk 0:02:31.6]} 17... Re8 {[%clk 0:01:58]} 18. Re1 {[%clk
0:02:31.7]} 18... h6 {[%clk 0:01:41]} 19. Qb1 {[%clk 0:01:42.6]} 19... Ra8
{[%clk 0:01:36.6]} 20. Rxa8 {[%clk 0:01:28.7]} 20... Qxa8 {[%clk 0:01:35.3]} 21.
Nd2 {[%clk 0:01:24.9]} 21... Nh5 {[%clk 0:00:57.5]} 22. Nf1 {[%clk 0:01:10.7]}
22... Nf4 {[%clk 0:00:54.3]} 23. Kh2 {[%clk 0:01:04.1]} 23... Ne6 {[%clk
0:00:44.7]} 24. Be3 {[%clk 0:01:00.6]} 24... Qa3 {[%clk 0:00:38.7]} 25. Bd2
{[%clk 0:00:40.7]} 25... Rd8 {[%clk 0:00:36.7]} 26. exd5 {[%clk 0:00:36.1]}
26... Bxd5 {[%clk 0:00:34.3]} 27. Qa1 {[%clk 0:00:35.3]} 27... Ra8 {[%clk
0:00:31.1]} 28. Qxa3 {[%clk 0:00:32.2]} 28... Rxa3 {[%clk 0:00:32]} 29. Ne3
{[%clk 0:00:32.5]} 29... Bc6 {[%clk 0:00:30.6]} 30. Rb1 {[%clk 0:00:25.4]} 30...
Ra2 {[%clk 0:00:24.6]} 31. Be1 {[%clk 0:00:19.4]} 31... Nf4 {[%clk 0:00:21.6]}
32. g3 {[%clk 0:00:15.6]} 32... Ne2 {[%clk 0:00:19.6]} 33. Bb3 {[%clk 0:00:14]}
33... Ra3 {[%clk 0:00:19.2]} 34. Nc2 {[%clk 0:00:11]} 34... Ra8 {[%clk
0:00:18.1]} 35. Ne3 {[%clk 0:00:09.4]} 35... Ra3 {[%clk 0:00:17.5]} 36. Nc2
{[%clk 0:00:09.5]} 36... Ra8 {[%clk 0:00:17.5]} 37. Ra1 {[%clk 0:00:06.6]} 37...
Rxa1 {[%clk 0:00:16.8]} 38. Nxa1 {[%clk 0:00:07.5]} 38... Nc1 {[%clk 0:00:12.6]}
39. Bc2 {[%clk 0:00:06.3]} 39... Ne2 {[%clk 0:00:11.7]} 40. Bd2 {[%clk
0:00:05.3]} 40... f5 {[%clk 0:00:10.7]} 41. Bd1 {[%clk 0:00:05]} 41... Bf3
{[%clk 0:00:08.4]} 42. Nc2 {[%clk 0:00:02.2]} 42... e4 {[%clk 0:00:08.8]} 43.
dxe4 {[%clk 0:00:02.1]} 43... fxe4 {[%clk 0:00:09.3]} 44. Ne1 {[%clk 0:00:02.3]}
44... Nxc3 {[%clk 0:00:08.3]} 45. Bxc3 {[%clk 0:00:02.7]} 45... Bxc3 {[%clk
0:00:07.2]} 46. Nxf3 {[%clk 0:00:02.4]} 46... exf3 {[%clk 0:00:08.1]} 47. Bxf3
{[%clk 0:00:02.8]} 47... Bxb4 {[%clk 0:00:09]} 48. Bc6 {[%clk 0:00:03.6]} 48...
Bc5 {[%clk 0:00:09.1]} 49. Bxb5 {[%clk 0:00:04.5]} 49... Bxf2 {[%clk 0:00:09.2]}
50. Kg2 {[%clk 0:00:05.4]} 50... Bd4 {[%clk 0:00:09.6]} 51. Bc4+ {[%clk
0:00:06.3]} 51... Kg7 {[%clk 0:00:09.8]} 52. Kf3 {[%clk 0:00:07.2]} 52... g5
{[%clk 0:00:10.3]} 53. g4 {[%clk 0:00:07.3]} 53... c5 {[%clk 0:00:11.2]} 54. Ke2
{[%clk 0:00:07.1]} 54... Kf6 {[%clk 0:00:12.1]} 55. Kd3 {[%clk 0:00:07.5]} 55...
Ke5 {[%clk 0:00:12.6]} 56. Bf7 {[%clk 0:00:07.7]} 56... Kf4 {[%clk 0:00:12.6]}
57. Bh5 {[%clk 0:00:08.3]} 57... Kg3 {[%clk 0:00:12.8]} 58. Kc4 {[%clk
0:00:08.9]} 58... Kxh3 {[%clk 0:00:13.2]} 59. Kd3 {[%clk 0:00:09.6]} 59... Kg3
{[%clk 0:00:13.7]} 60. Kc4 {[%clk 0:00:10.1]} 60... Kf4 {[%clk 0:00:14.3]} 61.
Kd3 {[%clk 0:00:10.6]} 61... Ke5 {[%clk 0:00:14.8]} 62. Kc4 {[%clk 0:00:11.1]}
62... Kd6 {[%clk 0:00:14.7]} 63. Bg6 {[%clk 0:00:09.8]} 63... Bf2 {[%clk
0:00:14.5]} 64. Bh5 {[%clk 0:00:09.9]} 64... Ke5 {[%clk 0:00:14.4]} 65. Bg6
{[%clk 0:00:09.5]} 65... Kf4 {[%clk 0:00:14.3]} 66. Bh5 {[%clk 0:00:10.4]}
1/2-1/2

[Event "*** Titled Tuesday Blitz"]
[Site "Chess.com"]
[Date "2021.04.06"]
[Round "6"]
[White "Ermito2020"]
[Black "MirMan90"]
[Result "1-0"]
[WhiteElo "2569"]
[BlackElo "2684"]
[TimeControl "180+1"]
[EndTime "11:09:28 PDT"]
[Termination "Ermito2020 won by resignation"]

1. e4 {[%clk 0:03:00.9]} 1... c5 {[%clk 0:02:56.7]} 2. Nf3 {[%clk 0:03:01.2]}
2... d6 {[%clk 0:02:56.7]} 3. d4 {[%clk 0:03:01.1]} 3... cxd4 {[%clk 0:02:57.1]}
4. Nxd4 {[%clk 0:03:02]} 4... Nf6 {[%clk 0:02:57.4]} 5. Nc3 {[%clk 0:03:02.5]}
5... g6 {[%clk 0:02:57.8]} 6. Be3 {[%clk 0:03:01.9]} 6... Bg7 {[%clk 0:02:58.1]}
7. f3 {[%clk 0:03:02.2]} 7... O-O {[%clk 0:02:58.1]} 8. Qd2 {[%clk 0:03:02.3]}
8... Nc6 {[%clk 0:02:58.1]} 9. g4 {[%clk 0:03:00.1]} 9... Be6 {[%clk 0:02:55.4]}
10. Nxe6 {[%clk 0:02:59.1]} 10... fxe6 {[%clk 0:02:55.2]} 11. O-O-O {[%clk
0:03:00]} 11... Ne5 {[%clk 0:02:46.5]} 12. Be2 {[%clk 0:02:59.3]} 12... Rc8
{[%clk 0:02:22.8]} 13. Nb5 {[%clk 0:02:57.4]} 13... a6 {[%clk 0:01:55.8]} 14.
Nd4 {[%clk 0:02:55.6]} 14... Qd7 {[%clk 0:01:55.6]} 15. Kb1 {[%clk 0:02:48.9]}
15... Nc4 {[%clk 0:01:52.1]} 16. Bxc4 {[%clk 0:02:48.5]} 16... Rxc4 {[%clk
0:01:53]} 17. h4 {[%clk 0:02:46.2]} 17... e5 {[%clk 0:01:45.9]} 18. Nb3 {[%clk
0:02:36.2]} 18... Qe6 {[%clk 0:01:44.5]} 19. h5 {[%clk 0:02:30.5]} 19... Rf7
{[%clk 0:01:32.5]} 20. hxg6 {[%clk 0:02:27.2]} 20... hxg6 {[%clk 0:01:32.4]} 21.
Bh6 {[%clk 0:02:11.8]} 21... Nd7 {[%clk 0:01:22.9]} 22. Bxg7 {[%clk 0:02:03]}
22... Rxg7 {[%clk 0:01:21.9]} 23. Qh6 {[%clk 0:02:00.4]} 23... Kf7 {[%clk
0:01:16.1]} 24. Rdf1 {[%clk 0:01:51.8]} 24... g5 {[%clk 0:01:13.1]} 25. Qh8
{[%clk 0:01:44.2]} 25... Nf6 {[%clk 0:01:08.6]} 26. Qb8 {[%clk 0:01:35.5]} 26...
Qc8 {[%clk 0:01:06.7]} 27. Rh8 {[%clk 0:01:29.5]} 27... Rg8 {[%clk 0:01:00.7]}
28. Rxg8 {[%clk 0:01:27.8]} 28... Nxg8 {[%clk 0:00:53]} 29. Qxc8 {[%clk
0:01:26.3]} 29... Rxc8 {[%clk 0:00:52.5]} 30. c3 {[%clk 0:01:25]} 30... Nf6
{[%clk 0:00:51.1]} 31. Rh1 {[%clk 0:01:24]} 31... Kg6 {[%clk 0:00:46.5]} 32. Kc2
{[%clk 0:01:20.6]} 32... Nd7 {[%clk 0:00:46.5]} 33. Kd3 {[%clk 0:01:16.9]} 33...
Nf8 {[%clk 0:00:45.5]} 34. Nc1 {[%clk 0:01:05.2]} 34... Ne6 {[%clk 0:00:44.8]}
35. Ne2 {[%clk 0:01:04.4]} 35... b5 {[%clk 0:00:39.6]} 36. Ke3 {[%clk
0:01:00.4]} 36... Nc5 {[%clk 0:00:39.4]} 37. Ng3 {[%clk 0:00:57.2]} 37... e6
{[%clk 0:00:35.5]} 38. Ne2 {[%clk 0:00:55.3]} 38... Na4 {[%clk 0:00:35]} 39. b3
{[%clk 0:00:50.4]} 39... Nxc3 {[%clk 0:00:30.6]} 40. Rc1 {[%clk 0:00:49.4]}
40... b4 {[%clk 0:00:25.2]} 41. a3 {[%clk 0:00:47.2]} 41... d5 {[%clk
0:00:23.7]} 42. axb4 {[%clk 0:00:44.5]} 42... d4+ {[%clk 0:00:21.9]} 43. Kd2
{[%clk 0:00:43.6]} 43... Rb8 {[%clk 0:00:17.9]} 44. Nxc3 {[%clk 0:00:42.4]}
44... dxc3+ {[%clk 0:00:16.7]} 45. Kxc3 {[%clk 0:00:42.4]} 45... Rf8 {[%clk
0:00:16.5]} 46. Rf1 {[%clk 0:00:41.1]} 46... Rc8+ {[%clk 0:00:16.5]} 47. Kb2
{[%clk 0:00:40.2]} 47... Rb8 {[%clk 0:00:16]} 48. Ra1 {[%clk 0:00:40.4]} 48...
Rxb4 {[%clk 0:00:13.8]} 49. Rxa6 {[%clk 0:00:40]} 49... Kf6 {[%clk 0:00:13.5]}
50. Kc3 {[%clk 0:00:40.3]} 50... Rd4 {[%clk 0:00:13.1]} 51. b4 {[%clk
0:00:40.2]} 51... Rd1 {[%clk 0:00:13.3]} 52. b5 {[%clk 0:00:39]} 52... Rb1
{[%clk 0:00:12.7]} 53. Kc4 {[%clk 0:00:38.3]} 53... Ke7 {[%clk 0:00:13.1]} 54.
Ra7+ {[%clk 0:00:28.3]} 54... Kd6 {[%clk 0:00:12.6]} 55. Rg7 {[%clk 0:00:27.5]}
55... Rf1 {[%clk 0:00:12.2]} 56. Rxg5 {[%clk 0:00:26.9]} 56... Rxf3 {[%clk
0:00:12.3]} 57. Rg7 {[%clk 0:00:25.9]} 57... Rf1 {[%clk 0:00:11.1]} 58. b6
{[%clk 0:00:25.5]} 58... Kc6 {[%clk 0:00:09.5]} 59. b7 {[%clk 0:00:25]} 59...
Rb1 {[%clk 0:00:09.4]} 60. g5 {[%clk 0:00:24.5]} 60... Kd6 {[%clk 0:00:09]} 61.
g6 {[%clk 0:00:24.1]} 61... Rb2 {[%clk 0:00:08.8]} 62. Rf7 {[%clk 0:00:22.6]}
62... Rc2+ {[%clk 0:00:07.1]} 63. Kd3 {[%clk 0:00:22.1]} 63... Rb2 {[%clk
0:00:07.3]} 64. g7 {[%clk 0:00:21.5]} 1-0